Cogmind - Beta 13 @@@ ROGUE MODE // 2024.03.13 @ 07:09:59 Player: Carpathian Result: Self-destructed Performance ------------- Evolutions (1) 500 Regions Visited (2) 400 Robots Destroyed (9) 45 Value Destroyed (269) 269 Prototype IDs (1) 20 Alien Tech Used (0) 0 Bonus (0) 0 TOTAL SCORE: 1234 Bonus ------- None Cogmind --------- Core Integrity 342/400 Matter 231/300 Energy 250/250 System Corruption 0% Temperature Cool (0) Movement Walking (190) Ox1 Location -9/Materials Parts ------- > --- POWER (1) -------- Ion Engine > --- PROPULSION (2) --- Aluminum Leg > --- UTILITY (4) ------ Small Storage Unit Targeting Computer > --- WEAPON (2) ------- Heavy Assault Rifle Light Cannon > --- INVENTORY (8) ---- Light Ion Engine Light Treads Light Treads Medium Laser Medium Laser Assault Rifle Peak State ------------ > --- POWER ------------ Ion Engine > --- PROPULSION ------- Aluminum Leg Aluminum Leg > --- UTILITY ---------- Small Storage Unit Targeting Computer > --- WEAPON ----------- Assault Rifle Improved Assault Rifle > --- INVENTORY -------- Light Ion Engine Light Treads Light Treads Medium Laser Medium Laser Light Assault Rifle Light Cannon [Rating: 9] Favorites ----------- Power Ion Engine Engine Ion Engine Propulsion Aluminum Leg Leg Aluminum Leg Utility Small Storage Unit Storage Small Storage Unit Processor Targeting Computer Weapon Assault Rifle Ballistic Gun Assault Rifle Ballistic Cannon Light Cannon Build | -11 -10 -9 ------- Run | Yrd Mat Mat Slots Evolved 2 | . . 2 Power . | . . . Propulsion . | . . . Utility 2 | . . 2 Weapon . | . . . Parts Attached 11 | 6 1 4 Power 1 | 1 . . Engine 1 | 1 . . Core . | . . . Reactor . | . . . Propulsion 2 | 2 . . Treads . | . . . Leg 2 | 2 . . Wheel . | . . . Hover . | . . . Flight . | . . . Utility 2 | 1 1 . Device . | . . . Storage 1 | 1 . . Processor 1 | . 1 . Hackware . | . . . Protection . | . . . Artifact . | . . . Weapon 6 | 2 . 4 Energy Gun . | . . . Energy Cannon . | . . . Ballistic Gun 5 | 2 . 3 Ballistic Cannon 1 | . . 1 Launcher . | . . . Special Weapon . | . . . Impact Weapon . | . . . Slashing Weapon . | . . . Piercing Weapon . | . . . Special Melee Weapon . | . . . Unidentified Prototypes 1 | . . 1 Parts Lost 1 | . . 1 Power . | . . . Propulsion 1 | . . 1 Utility . | . . . Weapon . | . . . Highest Loss Streak 1 | . . 1 To Critical Strikes . | . . . Average Slot Usage (%) 82 | . 93 75 Engine 12 | . 14 11 Leg 23 | . 28 20 Storage 12 | . 14 11 Processor 9 | . 8 11 Ballistic Gun 23 | . 28 20 Ballistic Cannon 1 | . . 1 Naked Turns . | . . . Heaviest Build 16 | 13 13 16 Greatest Support 20 | 20 20 20 Greatest Overweight (x) 1 | . . 1 Average Overweight (x) . | . . . Largest Inventory Capacity 8 | 8 8 8 Average Capacity 7 | 6 8 8 Most Carried 7 | 4 7 7 Average Carried 5 | 1 5 6 Final Capacity 8 | 8 8 8 Final Carried 6 | 3 6 6 Class Distribution -------------------- 100% | Mutant Dominant Class ---------------- Mutant | -10/Materials Mutant | -9/Materials Resources | -11 -10 -9 ----------- Run | Yrd Mat Mat Matter Collected 454 | 220 65 169 Remotely . | . . . Salvage Created 297 | . 65 232 Parts 12 | . 5 7 Haulers Intercepted 1 | . . 1 Recyclers Shooed . | . . . Parts Field Recycled . | . . . Retrieved Matter . | . . . Parts Self-Destructed . | . . . Prevented . | . . . Kills | -11 -10 -9 ------- Run | Yrd Mat Mat Combat Hostiles Destroyed 7 | . 2 5 Guns 6 | . 2 4 Cannons 1 | . . 1 Classes Destroyed 3 | . 1 2 Hauler 1 | . . 1 Watcher 1 | . . 1 Grunt 7 | . 2 5 Best Kill Streak 2 | . 2 2 Combat Bots Only 2 | . 2 1 Max Kills in Single Turn 1 | . 1 1 Gunslinging . | . . . Exploded . | . . . Melee . | . . . Uniques/NPCs Destroyed . | . . . Combat | -11 -10 -9 -------- Run | Yrd Mat Mat Hostile Shots Fired 44 | . 11 33 Missed 13 | . 8 5 Damage Taken 364 | . 34 330 Core 58 | . . 58 Absorbed by Shields . | . . . Core Remaining (%) 100 | 100 100 . Volleys Fired 37 | . 5 32 Largest 2 | . 2 2 Hottest 58 | . 40 58 Shots Fired 74 | . 10 64 Gun 62 | . 10 52 Cannon 12 | . . 12 Launcher . | . . . Special . | . . . Kinetic 74 | . 10 64 Thermal . | . . . Explosive . | . . . Electromagnetic . | . . . Robot Hit Streak 9 | . 3 9 Robot Miss Streak 4 | . 1 4 Penetration Max . | . . . Secondary Targets . | . . . Shots Hit Robots 52 | . 8 44 Core Hits 16 | . 4 12 Critical Kills . | . . . Critical Parts Destroyed . | . . . Critical Strikes . | . . . Melee Attacks . | . . . Impact . | . . . Slashing . | . . . Piercing . | . . . Sneak Attacks . | . . . Combat Hostiles . | . . . Follow-up Attacks . | . . . Damage Inflicted 716 | . 78 638 Guns 576 | . 78 498 Cannons 140 | . . 140 Explosions . | . . . Melee . | . . . Ramming . | . . . Kinetic 716 | . 78 638 Thermal . | . . . Explosive . | . . . Electromagnetic . | . . . Impact . | . . . Slashing . | . . . Piercing . | . . . Highest Corruption 2 | . 2 . Average Corruption 2 | . 2 . Corruption Purged . | . . . Corruption Blocked . | . . . Overload Shots . | . . . Overflow Damage . | . . . Projectiles . | . . . Explosions . | . . . Melee . | . . . Knockbacks 4 | . . 4 Impact . | . . . Kinetic 3 | . . 3 Secondary 1 | . . 1 Self-Inflicted Damage . | . . . Shots . | . . . Rammed . | . . . Targets Rammed . | . . . Kicked . | . . . Crushed . | . . . Highest Temperature 8 | . . 8 Average Temperature 3 | . . 3 Received Heat Transfer 204 | . 18 186 Siege Activations . | . . . Robots Corrupted . | . . . Combat Hostiles . | . . . Parts Fried . | . . . Impact Corruptions . | . . . Robots Melted . | . . . Combat Hostiles . | . . . Parts Melted . | . . . Heat Transferred . | . . . Parts Sabotaged . | . . . Parts Stolen . | . . . Parts Stripped . | . . . Power Chain Reactions . | . . . Alert | -11 -10 -9 ------- Run | Yrd Mat Mat Peak Influence 232 | . 50 232 Initial 20 | . . 20 Average 44 | . 3 76 Maximum Alert Level 1 | . . 1 Low Security (%) 97 | 100 100 95 Level 1 2 | . . 4 Level 2 . | . . . Level 3 . | . . . Level 4 . | . . . Level 5 . | . . . High Security . | . . . Max Security . | . . . Squads Dispatched 3 | . 2 1 Investigation 1 | . . 1 Extermination . | . . . Reinforcement 2 | . 2 . Assault . | . . . Garrison . | . . . Intercept . | . . . Searches Triggered . | . . . Construction Impeded . | . . . Haulers Reinforced . | . . . Active Scanning Responses . | . . . Cargo Convoy Interrupts . | . . . Stealth | -11 -10 -9 --------- Run | Yrd Mat Mat Distress Signals 2 | . . 2 Communications Jammed . | . . . Distress Signals . | . . . Times Spotted 16 | . 5 11 Peak Tracking Total 3 | . 2 3 Tactical Retreats 1 | . . 1 Traps | -11 -10 -9 ------- Run | Yrd Mat Mat Traps Triggered 2 | . 1 1 Indirectly . | . . . Trap Hack Attempts . | . . . Triggered . | . . . Disarmed . | . . . Reprogrammed . | . . . Reused . | . . . Traps Extracted . | . . . Installed . | . . . Triggered . | . . . Machines | -11 -10 -9 ---------- Run | Yrd Mat Mat Machines Disabled . | . . . Max in Single Turn . | . . . Machines Repaired . | . . . Machines Dismantled . | . . . Machines Sabotaged . | . . . Overloaded Fab Kills . | . . . Hacking | -11 -10 -9 --------- Run | Yrd Mat Mat Machines Accessed 5 | . 1 4 Terminals 5 | . 1 4 Fabricators . | . . . Repair Stations . | . . . Recycling Units . | . . . Scanalyzers . | . . . Garrison Access . | . . . Total Hacks 5 | . 1 4 Successful 5 | . 1 4 Failed . | . . . Catastrophic . | . . . Database Lockouts . | . . . Manual . | . . . Terminals 5 | . 1 4 Fabricators . | . . . Repair Stations . | . . . Recycling Units . | . . . Scanalyzers . | . . . Garrison Access . | . . . Terminal Hacks 5 | . 1 4 Locate Traps 1 | . . 1 Dispatch Records 2 | . 1 1 Transport Status 1 | . . 1 Investigation Status 1 | . . 1 Fabricator Hacks . | . . . Repair Station Hacks . | . . . Recycling Unit Hacks . | . . . Scanalyzer . | . . . Garrison Access Hacks . | . . . Unauthorized Hacks . | . . . Terminals . | . . . Fabricators . | . . . Repair Stations . | . . . Recycling Units . | . . . Scanalyzers . | . . . Garrison Access . | . . . Data Cores Recovered . | . . . Used . | . . . Hacking Detections 1 | . . 1 Full Trace Events . | . . . Feedback Events . | . . . Feedback Blocked . | . . . Robot Schematics Acquired . | . . . Robots Built . | . . . Authchips . | . . . Time . | . . . Total Robot Build Rating . | . . . Part Schematics Acquired . | . . . Parts Built . | . . . Authchips . | . . . Time . | . . . Total Part Build Rating . | . . . Parts Repaired . | . . . Time . | . . . Parts Recycled . | . . . Recycled Matter . | . . . Retrieved Matter . | . . . Retrieved Components . | . . . Parts Scanalyzed . | . . . Part Schematics Acquired . | . . . Parts Damaged . | . . . Bothacking | -11 -10 -9 ------------ Run | Yrd Mat Mat Used RIF Installer . | . . . Robots Hacked . | . . . Non-combat . | . . . Combat . | . . . Robot Hacks Applied . | . . . Relay Couplers Released . | . . . Fabnet Peak Effective % . | . . . Robots Rewired . | . . . Allies Hacked . | . . . Hacks Repelled . | . . . Allies | -11 -10 -9 -------- Run | Yrd Mat Mat Total Allies . | . . . Largest Group . | . . . Highest-Rated Group . | . . . Highest-Rated Ally . | . . . Total Orders . | . . . Ally Attacks . | . . . Total Damage . | . . . Kills . | . . . Allies Corrupted . | . . . Allies Melted . | . . . Intel | -11 -10 -9 ------- Run | Yrd Mat Mat Robot Analysis Total . | . . . Derelict Logs Recovered . | . . . Drone Launches . | . . . Drone Recoveries . | . . . Exploration | -11 -10 -9 ------------- Run | Yrd Mat Mat Turns Passed 717 | 63 245 409 Spaces Moved 458 | 48 189 221 Core 13 | 13 . . Treads . | . . . Legs 445 | 35 189 221 Wheels . | . . . Hover . | . . . Flight . | . . . Fastest Speed 50 | 50 120 120 Average Speed 120 | 101 120 124 Slowest Speed 190 | 120 120 190 Overloaded Moves . | . . . Propulsion Burnouts . | . . . Robots Hopped . | . . . Cave-ins Triggered . | . . . Exploration Rate (%) 20 | 4 36 22 Regions Visited 2 Branch Regions . Pre-discovered Areas . | . . . Known Exits Taken . | . . . Unknown Exits Taken 2 | 1 1 . Scrap Searched . | . . . Spaces Dug . | . . . Terrain Destroyed . | . . . Melee . | . . . Projectile . | . . . AOE . | . . . Terrain Rammed . | . . . Walls Destroyed . | . . . Machines Disabled . | . . . Actions | -11 -10 -9 --------- Run | Yrd Mat Mat Total 551 | 62 198 291 Wait 30 | . . 30 Move 456 | 47 188 221 Hop . | . . . Pick Up 15 | 9 4 2 Fast Attach . | . . . Attach 8 | 6 1 1 Detach . | . . . Swap 3 | . . 3 Drop 2 | . . 2 Fire 37 | . 5 32 Melee . | . . . Ram . | . . . Kick . | . . . Crush . | . . . Escape Stasis . | . . . Rewire . | . . . Trap . | . . . Miscellaneous . | . . . Route ------- -11/Scrapyard -10/Materials -9/Materials History --------- Turn | Location | Event 5 | -11/Scrapyard | Discovered new exit (range 15) 64 | -11/Scrapyard | Entered Materials 272 | -10/Materials | Discovered new exit (range 13) 309 | -10/Materials | Entered another Materials area 309 | -9/Materials | Evolved 2 slots: Utility x2 316 | -9/Materials | Build established: Mutant 718 | -9/Materials | Self-destructed Last Messages --------------- 00619_ K-01 Serf collects debris. 00624_ Acquired 33 matter. 00627_ K-01 Serf collects debris. 00659_ G-34 Mercenary knocked back. 00668_ G-47 Trooper knocked back. 00671_ Aluminum Leg destroyed. 00672_ Acquired 3 matter. 00674_ G-47 Trooper destroyed. 00679_ Acquired 5 matter. 00681_ Acquired 38 matter. 00688_ R-06 Scavenger collects Particle Gun. 00690_ W-16 Scout sends out distress signal. 00696_ W-16 Scout destroyed. 00700_ R-06 Scavenger collects Hover Unit. 00702_ G-34 Mercenary destroyed. 00704_ R-06 Scavenger collects Lgt. Ion Engine. 00705_ R-06 Scavenger collects Aluminum Leg. 00712_ K-01 Serf collects debris. 00716_ Acquired 1 matter. 00717_ K-01 Serf collects debris. Map ----- +----------------------------------------------------+ | ????????????????????????? | | ????????????????????????? ^ ^^ | | ????????????????????????????????###### #######+# | | ?????????????????????????????????????# #???# T | | ?????????????????????????????????????# #???# | | ?????????????????????????????????????+ #???# """ | | ?????????????????????????????????????# #???# """ | | ?????????????????????????????????????# #???# """ | | ?????????????????????????????????????# #???# | | ?????????????????????????????????????# #???##### | | ?????????????????????????????????????# #???????? | | ?????????????????????????????????????# #???????? | | ??????????????????????????????#+###### ########? | | ??????????????????????????????# #? | | ????????????????????????####### ## | | ????????????????????????# % | | ????????????????????????# ########+###########+### | | ????????????????????????# #?????? ????# | | ????????????????????????# #?????? ????#""" """ " | | ????????????????????????# #????? ???#"R """ " | | ????????????????????#####+##???? """ ???#""" """ " | | ????????????????????#]] #???# """ ??# | | ????????????????????#]] #???# """ ??########## | | ????????????????????#] k #???########?????????# | | ????????????????????# % #????????????????????# | | ????????????????????# @ #????????????????????# | | ????????????????????# k #????????????????????# | | ????????????????????####+###????????????????????# | | ??????????????????????? ^ ??????????????????????# | | ??????????????????????? %% ?????????????????????# | | ??????????????????????? #????????????????????# | | ??????????????????????# #????????????????????## | | ??????????????????????# #?????????????????????? | | ??????????????????????# #?????????????????????? | | ??????????????????????# #?????????????????????? | | ??????????????????????# #?????????????????????? | | ??????????????????????# ?????????????????????? | | ??????????????????????? ?????????????????????? | | ????????????????????????? ?????????????????????? | | ??????????????????????????? ?????????????????????? | | ?????????????????????????????????????????????????? | | ?????????????????????????????????????????????????? | | ?????????????????????????????????????????????????? | | ?????????????????????????????????????????????????? | | ?????????????????????????????????????????????????? | | ?????????????????????????????????????????????????? | | ?????????????????????????????????????????????????? | | ?????????????????????????????????????????????????? | | ?????????????????????????????????????????????????? | | ?????????????????????????????????????????????????? | +----------------------------------------------------+ Best States ------------- Heat Dissipation 28 Energy Generation 10 Energy Capacity 250 Matter Stores 300 Matter Capacity 300 Sight Range 16 Terrain Scan Density 10 Evasion (%) 55 Targeting Accuracy 5 Item Schematics ----------------- None Robot Schematics ------------------ None Fabricated ------------ Nothing Alien Tech Used ----------------- None Achievements -------------- None Challenges ------------ None Game ------ Seed LinkedRecyclingTendrils Manual? 0 Play Time 00:06:26 Cumulative 15.2 hours Start 2024.03.13 @ 07:05:38 End 2024.03.13 @ 07:09:59 Sessions 1 Manual Loads 0 Difficulty Rogue Special Mode None Game No. 83 Rogue 83 Adventurer 0 Explorer 0 Win Type - Total 0 Types 0/0/0/0/0/0/0/0/0 Lore% 6 Gallery% 21 Achievement% 15 Wizard Run 0 Options --------- Layout 0 ASCII 0 Keyboard 0 Movement Arrows Keybinds 0 Fullscreen 2 Font 24/Cog Map View 76x50 Zoom Use 0% Tactical HUD 1 Map Filters NONE Filters NONE Steam 1 RUN: 926d9af2-0c29-4bd2-a095-705b87fe763c